fUST/lending_fUST_20250716
["ID","MTS","AMOUNT","RATE_DAILY","PERIOD"]
[372406092,1752631844759,-520.84375,0.00021056,2]
[372406093,1752631844769,-214.37129034,0.00021056,2]
[372406094,1752631844778,-160.0,0.00021056,2]
[372406095,1752631844788,-465.87650376,0.00021056,2]
[372406096,1752631844798,-460.0,0.00021056,2]
[372406097,1752631844807,-460.0,0.00021056,2]
[372406098,1752631844817,-3241.59,0.00021056,2]
[372406099,1752631844827,-460.0,0.00021056,2]
[372406100,1752631844837,-496.96,0.00021056,2]
[372406101,1752631844847,-555.17136949,0.00021056,2]
[372406102,1752631844856,-659.84,0.00021056,2]
[372406103,1752631844866,-481.95417716,0.00021056,2]
[372406104,1752631844876,-460.0,0.00021056,2]
[372406105,1752631844885,-460.0,0.00021056,2]
[372406106,1752631844895,-465.09735393,0.00021057,2]
[372406107,1752631844904,-464.45537406,0.00021057,2]
[372406108,1752631844914,-465.72307265,0.00021057,2]
[372406109,1752631844924,-460.0,0.00021057,2]
[372406110,1752631844934,-221.63553992,0.00021057,2]
[372406111,1752631844944,-486.14467385,0.00021057,2]
[372406112,1752631844954,-942.12,0.00021057,2]
[372406113,1752631844964,-460.0,0.00021057,2]
[372406114,1752631844974,-460.0,0.00021057,2]
[372406115,1752631844984,-460.0,0.00021057,2]
[372406116,1752631844993,-460.0,0.00021057,2]
[372406117,1752631845003,-574.51,0.00021057,2]
[372406118,1752631845014,-460.0,0.00021057,2]
[372406119,1752631845025,-465.21448741,0.00021155,2]
[372406120,1752631845034,-463.14232967,0.00021155,2]
[372406121,1752631845044,-465.17664029,0.00021155,2]
[372406122,1752631845053,-463.22438783,0.00021155,2]
[372406123,1752631845064,-462.59766325,0.00021155,2]
[372406124,1752631845073,-464.48585198,0.00021155,2]
[372406125,1752631845083,-462.5974337,0.00021155,2]
[372406126,1752631845093,-462.61272239,0.00021155,2]
[372406127,1752631845103,-562.16476353,0.00021155,2]
[372406128,1752631845113,-464.19789059,0.00021155,2]
[372406129,1752631845122,-461.9996848,0.00021155,2]
[372406130,1752631845132,-460.0,0.00021155,2]
[372406131,1752631845141,-466.51028585,0.00021155,2]
[372406132,1752631845150,-460.0,0.00021155,2]
[372406133,1752631845159,-460.0,0.00021155,2]
[372406134,1752631845169,-536.6,0.00021155,2]
[372406135,1752631845178,-458.26675044,0.00021155,2]
[372406136,1752631845188,-460.0,0.00021155,2]
[372406137,1752631845198,-460.0,0.00021155,2]
[372406138,1752631845208,-578.74,0.00021155,2]
[372406139,1752631845217,-464.78572214,0.00021156,2]
[372406140,1752631845226,-460.0,0.00021156,2]
[372406141,1752631845236,-466.67909204,0.00021156,2]
[372406142,1752631845252,-470.22133568,0.00021156,2]
[372406143,1752631845263,-460.0,0.00021156,2]
[372406144,1752631845274,-469.14789755,0.00021156,2]
[372406145,1752631845284,-460.0,0.00021156,2]
[372406146,1752631845294,-460.0,0.00021156,2]
[372406147,1752631845304,-460.0,0.00021156,2]
[372406148,1752631845314,-460.0,0.00021156,2]
[372406149,1752631845323,-470.66208166,0.00021157,2]
[372406150,1752631845332,-552.51,0.00021157,2]
[372406151,1752631845342,-463.3606998,0.00021257,2]
[372406152,1752631845351,-464.6380152,0.00021257,2]
[372406153,1752631845360,-466.04781723,0.00021257,2]
[372406154,1752631845370,-462.35004851,0.00021257,2]
[372406155,1752631845382,-460.0,0.00021257,2]
[372406156,1752631845395,-463.08257825,0.00021257,2]
[372406157,1752631845406,-465.16030492,0.00021257,2]
[372406158,1752631845415,-463.38609221,0.00021257,2]
[372406159,1752631845425,-461.51290468,0.00021257,2]
[372406160,1752631845435,-461.48094352,0.00021257,2]
[372406161,1752631845444,-466.77664384,0.00021257,2]
[372406162,1752631845454,-460.0,0.00021329,2]
[372406163,1752631845465,-460.0,0.00021329,2]
[372406164,1752631845475,-460.0,0.0002133,2]
[372406165,1752631845485,-327.90054237,0.0002133,2]
[372406166,1752631845495,-3241.59,0.0002133,2]
[372406167,1752631845505,-460.0,0.0002133,2]
[372406168,1752631845515,-496.96,0.0002133,2]
[372406169,1752631845524,-659.84,0.0002133,2]
[372406170,1752631845533,-460.0,0.0002133,2]
[372406171,1752631845542,-460.0,0.0002133,2]
[372406172,1752631845551,-174.8346827,0.00021331,2]
[372406173,1752631845561,-942.12,0.00021331,2]
[372406175,1752631845571,-460.0,0.00021331,2]
[372406176,1752631845580,-466.43945715,0.00021331,2]
[372406177,1752631845589,-460.0,0.00021331,2]
[372406178,1752631845599,-460.0,0.00021331,2]
[372406179,1752631845608,-574.51,0.00021331,2]
[372406180,1752631845618,-460.0,0.00021331,2]
[372406181,1752631845627,-550.35227631,0.00021429,2]
[372406182,1752631845636,-460.0,0.00021429,2]
[372406183,1752631845645,-536.6,0.00021429,2]
[372406184,1752631845655,-460.0,0.00021429,2]
[372406185,1752631845664,-460.0,0.00021429,2]
[372406186,1752631845674,-578.74,0.00021429,2]
[372406187,1752631845683,-466.53440471,0.0002143,2]
[372406188,1752631845693,-460.0,0.0002143,2]
[372406189,1752631845702,-460.0,0.0002143,2]
[372406190,1752631845711,-460.0,0.0002143,2]
[372406191,1752631845721,-467.77221299,0.0002143,2]
[372406192,1752631845730,-188.05,0.0002143,2]
[372406193,1752631845740,-552.51,0.00021431,2]
[372406194,1752631845750,-2478.49,0.00021446,3]
[372406195,1752631845759,-460.0,0.00021531,2]
[372406196,1752631845769,-1841.30612354,0.0002158,2]
[372406197,1752631845780,-460.0,0.00021603,2]
[372406198,1752631845791,-460.0,0.00021603,2]
[372406199,1752631845802,-460.0,0.00021604,2]
[372406200,1752631845811,-3241.59,0.00021604,2]
[372406201,1752631845822,-460.0,0.00021604,2]
[372406202,1752631845833,-496.96,0.00021604,2]
[372406203,1752631845844,-659.84,0.00021604,2]
[372406204,1752631845854,-460.0,0.00021604,2]
[372406205,1752631845865,-460.0,0.00021604,2]
[372406206,1752631845876,-942.12,0.00021605,2]
[372406207,1752631845886,-475.33501086,0.00021605,2]
[372406208,1752631845895,-460.0,0.00021605,2]
[372406209,1752631845904,-460.0,0.00021605,2]
[372406210,1752631845914,-574.51,0.00021605,2]
[372406211,1752631845925,-247.39093753,0.00021605,2]
[372406212,1752631845936,-249.1753372,0.0002161,2]
[372406213,1752631845946,-6000.0,0.00021626,3]
[372406214,1752631845955,-505.55854201,0.00021686,2]
[372406215,1752631845965,-460.0,0.00021703,2]
[372406216,1752631845975,-536.6,0.00021703,2]
[372406217,1752631845984,-460.0,0.00021703,2]
[372406218,1752631845994,-460.0,0.00021703,2]
[372406219,1752631846004,-578.74,0.00021703,2]
[372406220,1752631846017,-161.14764081,0.00021704,2]
[372406221,1752631846026,-460.0,0.00021704,2]
[372406222,1752631846036,-536.43201972,0.00021704,2]
[372406223,1752631846045,-552.51,0.00021705,2]
[372406224,1752631846055,-1442.46,0.000218,2]
[372406225,1752631846065,-460.0,0.00021805,2]
[372406226,1752631846075,-4000.0,0.00021828,3]
[372406227,1752631846085,-214.37129034,0.00021828,3]
[372406228,1752631846097,-160.0,0.00021828,3]
[372406229,1752631846108,-709.38,0.0002187,3]
[372406230,1752631846118,-354.7,0.0002187,3]
[372406231,1752631846128,-460.0,0.00021877,2]
[372406232,1752631846138,-461.76320199,0.00021877,2]
[372406233,1752631846147,-403.32982664,0.00021878,2]
[372406234,1752631846156,-3241.59,0.00021878,2]
[372406235,1752631846166,-460.0,0.00021878,2]
[372406236,1752631846175,-496.96,0.00021878,2]
[372406237,1752631846186,-659.84,0.00021878,2]
[372406238,1752631846197,-460.0,0.00021878,2]
[372406239,1752631846206,-460.0,0.00021878,2]
[372406240,1752631846216,-942.12,0.00021879,2]
[372406241,1752631846226,-460.0,0.00021879,2]
[372406242,1752631846235,-460.0,0.00021879,2]
[372406243,1752631846245,-574.51,0.00021879,2]
[372406244,1752631846254,-1002.12086,0.000219,2]
[372406245,1752631846264,-500.0,0.00021917,2]
[372406246,1752631846273,-500.0,0.00021917,2]
[372406247,1752631846282,-500.0,0.00021917,2]
[372406248,1752631846291,-500.0,0.00021917,2]
[372406249,1752631846300,-500.0,0.00021917,2]
[372406250,1752631846310,-460.0,0.00021977,2]
[372406251,1752631846319,-500.0,0.00021977,2]
[372406252,1752631846328,-536.6,0.00021977,2]
[372406253,1752631846338,-460.0,0.00021977,2]
[372406254,1752631846347,-460.0,0.00021977,2]
[372406255,1752631846356,-578.74,0.00021977,2]
[372406256,1752631846366,-460.0,0.00021978,2]
[372406257,1752631846375,-552.51,0.00021979,2]
[372406258,1752631846384,-5000.0,0.00022,19]
[372406259,1752631846393,-159.0,0.00022,2]
[372406260,1752631846403,-460.0,0.00022079,2]
[372406261,1752631846412,-460.0,0.00022151,2]
[372406262,1752631846421,-3241.59,0.00022152,2]
[372406263,1752631846431,-202.4251385,0.00022152,2]
[372406264,1752631846440,-496.96,0.00022152,2]
[372406265,1752631846450,-659.84,0.00022152,2]
[372406266,1752631846459,-460.0,0.00022152,2]
[372406267,1752631846469,-460.0,0.00022152,2]
[372406268,1752631846478,-942.12,0.00022153,2]
[372406269,1752631846488,-153.60672548,0.00022153,2]
[372406270,1752631846497,-460.0,0.00022153,2]
[372406271,1752631846507,-574.51,0.00022153,2]
[372406272,1752631846517,-160.0,0.0002218,2]
[372406273,1752631846527,-589.65,0.000222,7]
[372406274,1752631846536,-460.0,0.00022251,2]
[372406275,1752631846546,-500.0,0.00022251,2]
[372406276,1752631846555,-536.6,0.00022251,2]
[372406277,1752631846564,-460.0,0.00022251,2]
[372406278,1752631846574,-460.0,0.00022251,2]
[372406279,1752631846583,-578.74,0.00022251,2]
[372406280,1752631846592,-170.08206489,0.00022252,2]
[372406281,1752631846602,-552.51,0.00022253,2]
[372406282,1752631846611,-302.0,0.00022309,2]
[372406283,1752631846621,-420.0,0.00022317,2]
[372406284,1752631846630,-302.0,0.00022317,2]
[372406285,1752631846639,-467.17174212,0.00022353,2]
[372406286,1752631846648,-30735.39,0.000224,2]
[372406287,1752631846743,-1000.0,0.000224,2]
[372406288,1752631846753,-460.0,0.00022425,2]
[372406289,1752631846763,-3241.59,0.00022426,2]
[372406290,1752631846773,-496.96,0.00022426,2]
[372406291,1752631846782,-659.84,0.00022426,2]
[372406292,1752631846792,-460.0,0.00022426,2]
[372406293,1752631846803,-460.0,0.00022426,2]
[372406294,1752631846813,-942.12,0.00022427,2]
[372406295,1752631846823,-460.0,0.00022427,2]
[372406296,1752631846833,-574.51,0.00022427,2]
[372406297,1752631846843,-618.83700156,0.00022445,2]
[372406298,1752631846853,-500.0,0.00022445,2]
[372406299,1752631846863,-500.0,0.00022445,2]
[372406300,1752631846872,-500.0,0.00022445,2]
[372406301,1752631846882,-460.0,0.00022525,2]
[372406302,1752631846891,-500.0,0.00022525,2]
[372406303,1752631846901,-536.6,0.00022525,2]
[372406304,1752631846910,-460.0,0.00022525,2]
[372406305,1752631846919,-243.92,0.00022525,2]
[372406306,1752631846930,-578.74,0.00022525,2]
[372406307,1752631846939,-552.51,0.00022527,2]
[372406308,1752631846949,-500.0,0.00022563,2]
[372406309,1752631846963,-500.0,0.00022567,2]
[372406310,1752631846972,-1841.30612354,0.00022654,2]
[372406311,1752631846982,-460.0,0.00022699,2]
[372406312,1752631846991,-3241.59,0.000227,2]
[372406313,1752631847001,-496.96,0.000227,2]
[372406314,1752631847010,-659.84,0.000227,2]
[372406315,1752631847024,-460.0,0.000227,2]
[372406316,1752631847034,-460.0,0.000227,2]
[372406317,1752631847043,-942.12,0.00022701,2]
[372406318,1752631847053,-481.17594916,0.00022701,2]
[372406319,1752631847063,-574.51,0.00022701,2]
[372406320,1752631847072,-260.0,0.00022728,2]
[372406321,1752631847081,-472.14021982,0.00022799,2]
[372406322,1752631847091,-500.0,0.00022799,2]
[372406323,1752631847101,-536.6,0.00022799,2]
[372406324,1752631847111,-460.0,0.00022799,2]
[372406325,1752631847120,-578.74,0.00022799,2]
[372406326,1752631847129,-504.3229207,0.000228,2]
[372406327,1752631847139,-552.51,0.00022801,2]
[372406328,1752631847148,-2536.59668,0.000229,2]
[372406329,1752631847159,-1000.0,0.000229,2]
[372406330,1752631847169,-460.0,0.00022973,2]
[372406331,1752631847179,-3241.59,0.00022974,2]
[372406332,1752631847190,-496.96,0.00022974,2]
[372406333,1752631847200,-659.84,0.00022974,2]
[372406334,1752631847209,-460.0,0.00022974,2]
[372406335,1752631847219,-460.0,0.00022974,2]
[372406336,1752631847228,-942.12,0.00022975,2]
[372406337,1752631847237,-574.51,0.00022975,2]
[372406338,1752631847247,-1006.36238514,0.00022993,2]
[372406339,1752631847256,-1003.36705562,0.00022993,2]
[372406340,1752631847265,-500.74551756,0.00022993,2]
[372406341,1752631847274,-150.64634875,0.00023,2]
[372406342,1752631847284,-230.76969291,0.00023,3]
[372406343,1752631847295,-838.99048831,0.00023,3]
[372406344,1752631847304,-160.0,0.00023,3]
[372406345,1752631847313,-215.5496034,0.00023,3]
[372406346,1752631847323,-168.0,0.00023,7]
[372406347,1752631847332,-520.84375,0.00023,3]
[372406348,1752631847342,-160.0,0.00023,3]
[372406349,1752631847352,-159.0,0.00023014,7]
[372406350,1752631847361,-7043.81364026,0.00023022,2]
[372406351,1752631847371,-207.4,0.00023022,2]
[372406352,1752631847382,-151.0,0.00023022,2]
[372406353,1752631847392,-151.0,0.00023022,2]
[372406354,1752631847403,-175.61442781,0.00023022,2]
[372406355,1752631847412,-500.0,0.00023073,2]
[372406356,1752631847421,-536.6,0.00023073,2]
[372406357,1752631847431,-460.0,0.00023073,2]
[372406358,1752631847440,-578.74,0.00023073,2]
[372406359,1752631847450,-552.51,0.00023075,2]
[372406360,1752631847459,-1000.0,0.0002311,2]
[372406361,1752631847469,-507.04566055,0.00023115,2]
[372406362,1752631847479,-202.45932234,0.00023247,2]
[372406363,1752631847488,-3241.59,0.00023248,2]
[372406364,1752631847498,-496.96,0.00023248,2]
[372406365,1752631847507,-659.84,0.00023248,2]
[372406366,1752631847517,-460.0,0.00023248,2]
[372406367,1752631847526,-460.0,0.00023248,2]
[372406368,1752631847536,-942.12,0.00023249,2]
[372406369,1752631847546,-574.51,0.00023249,2]
[372406370,1752631847556,-360.0,0.00023276,2]
[372406371,1752631847565,-500.0,0.00023347,2]
[372406372,1752631847575,-536.6,0.00023347,2]
[372406373,1752631847584,-460.0,0.00023347,2]
[372406374,1752631847594,-578.74,0.00023347,2]
[372406375,1752631847604,-552.51,0.00023349,2]
[372406376,1752631847613,-6351.33,0.000234,7]
[372406377,1752631847623,-1442.46,0.000234,7]
[372406378,1752631847633,-150.0,0.000234,2]
[372406379,1752631847643,-1000.0,0.000234,2]
[372406380,1752631847654,-3241.59,0.00023522,2]
[372406381,1752631847663,-496.96,0.00023522,2]
[372406382,1752631847675,-659.84,0.00023522,2]
[372406383,1752631847685,-460.0,0.00023522,2]
[372406384,1752631847695,-494.85239879,0.00023522,2]
[372406385,1752631847706,-942.12,0.00023523,2]
[372406386,1752631847716,-574.51,0.00023523,2]
[372406387,1752631847726,-200.0,0.00023561,2]
[372406388,1752631847736,-200.0,0.00023561,2]
[372406389,1752631847747,-200.0,0.00023561,2]
[372406390,1752631847758,-200.0,0.00023561,2]
[372406391,1752631847772,-200.0,0.00023561,2]
[372406392,1752631847782,-200.0,0.00023561,2]
[372406393,1752631847792,-251.4793984,0.00023561,2]
[372406394,1752631847802,-429.1687796,0.00023616,2]
[372406395,1752631847812,-429.1687796,0.00023616,2]
[372406396,1752631847822,-429.1687796,0.00023616,2]
[372406397,1752631847832,-429.1687796,0.00023616,2]
[372406398,1752631847841,-504.09248387,0.00023621,2]
[372406399,1752631847851,-536.6,0.00023621,2]
[372406400,1752631847860,-460.0,0.00023621,2]
[372406401,1752631847870,-578.74,0.00023621,2]
[372406402,1752631847880,-552.51,0.00023623,2]
[372406403,1752631847889,-1500.0,0.00023658,2]
[372406404,1752631847902,-970.562,0.00023673,2]
[372406405,1752631847912,-1841.30612354,0.00023727,2]
[372406406,1752631847922,-714.90504998,0.00023796,5]
[372406407,1752631847931,-3241.59,0.00023796,2]
[372406408,1752631847941,-496.96,0.00023796,2]
[372406409,1752631847950,-659.84,0.00023796,2]
[372406410,1752631847960,-460.0,0.00023796,2]
[372406411,1752631847969,-942.12,0.00023797,2]
[372406412,1752631847978,-574.51,0.00023797,2]
[372406413,1752631847988,-460.0,0.00023824,2]
[372406414,1752631847998,-585.2083177,0.0002389,2]
[372406415,1752631848008,-536.6,0.00023895,2]
[372406416,1752631848020,-460.0,0.00023895,2]
[372406417,1752631848029,-578.74,0.00023895,2]
[372406418,1752631848039,-552.51,0.00023897,2]
[372406419,1752631848048,-30735.39,0.000239,2]
[372406420,1752631848059,-1000.0,0.000239,2]
[372406421,1752631848069,-421.0,0.00023947,2]
[372406422,1752631848078,-300.0,0.00023948,2]
[372406423,1752631848088,-151.0,0.00024,10]
[372406424,1752631848098,-150.0,0.00024,7]
[372406425,1752631848109,-3241.59,0.0002407,2]
[372406426,1752631848119,-496.96,0.0002407,2]
[372406427,1752631848128,-659.84,0.0002407,2]
[372406428,1752631848137,-175.49810079,0.0002407,2]
[372406429,1752631848148,-942.12,0.00024071,2]
[372406430,1752631848164,-574.51,0.00024071,2]
[372406431,1752631848174,-589.65,0.000241,7]
[372406432,1752631848185,-161.0,0.00024164,7]
[372406433,1752631848194,-536.6,0.00024169,2]
[372406434,1752631848204,-460.0,0.00024169,2]
[372406435,1752631848214,-578.74,0.00024169,2]
[372406436,1752631848224,-552.51,0.00024171,2]
[372406437,1752631848234,-333.13521512,0.00024206,2]
[372406438,1752631848243,-649.268,0.00024273,2]
[372406439,1752631848253,-2162.591,0.00024273,2]
[372406440,1752631848264,-547.0,0.00024288,2]
[372406441,1752631848273,-3241.59,0.00024344,2]
[372406442,1752631848283,-496.96,0.00024344,2]
[372406443,1752631848293,-659.84,0.00024344,2]
[372406444,1752631848303,-942.12,0.00024345,2]
[372406445,1752631848312,-574.51,0.00024345,2]
[372406446,1752631848323,-565.88671789,0.00024372,2]
[372406447,1752631848333,-215.0738,0.00024391,2]
[372406448,1752631848342,-1000.0,0.000244,2]
[372406449,1752631848352,-168.0,0.00024416,2]
[372406450,1752631848361,-536.6,0.00024443,2]
[372406451,1752631848371,-460.0,0.00024443,2]
[372406452,1752631848381,-578.74,0.00024443,2]
[372406453,1752631848391,-552.51,0.00024445,2]
[372406454,1752631848401,-620.141207,0.00024487,8]
[372406455,1752631848411,-232.80144525,0.00024496,2]
[372406456,1752631848420,-151.0,0.000245,9]
[372406457,1752631848431,-151.0,0.000245,10]
[372406458,1752631848440,-435.2295657,0.00024575,2]
[372406459,1752631848449,-151.0,0.00024587,7]
[372406460,1752631848460,-3241.59,0.00024618,2]
[372406461,1752631848469,-496.96,0.00024618,2]
[372406462,1752631848480,-659.84,0.00024618,2]
[372406463,1752631848489,-942.12,0.00024619,2]
[372406464,1752631848499,-574.51,0.00024619,2]
[372406465,1752631848509,-168.0,0.00024641,2]
[372406466,1752631848518,-112675.89121311,0.00024651,2]
[372406467,1752631848527,-300.0,0.00024657,2]
[372406468,1752631848536,-300.0,0.00024657,2]
[372406469,1752631848546,-300.0,0.00024657,2]
[372406470,1752631848555,-300.0,0.00024657,2]
[372406471,1752631848565,-300.0,0.00024657,2]
[372406472,1752631848574,-300.0,0.00024657,2]
[372406473,1752631848584,-300.0,0.00024657,2]
[372406474,1752631848593,-300.0,0.00024657,2]
[372406475,1752631848603,-300.0,0.00024657,2]
[372406476,1752631848612,-300.0,0.00024657,2]
[372406477,1752631848621,-300.0,0.00024657,2]
[372406478,1752631848631,-300.0,0.00024657,2]
[372406479,1752631848640,-300.0,0.00024657,2]
[372406480,1752631848650,-300.0,0.00024657,2]
[372406481,1752631848660,-300.0,0.00024657,2]
[372406482,1752631848669,-400.76975278,0.00024658,7]
[372406483,1752631848679,-380.0,0.00024658,2]
[372406484,1752631848689,-200.0,0.00024658,15]
[372406485,1752631848699,-6351.33,0.000247,7]
[372406486,1752631848710,-230.76969291,0.000247,7]
[372406487,1752631848721,-215.5496034,0.000247,7]
[372406488,1752631848731,-520.84375,0.000247,7]
[372406489,1752631848741,-2334.55571406,0.00024712,2]
[372406490,1752631848751,-161.8240027,0.00024712,2]
[372406491,1752631848761,-456.3646118,0.00024712,2]
[372406492,1752631848771,-183.4683702,0.00024712,2]
[372406493,1752631848781,-166.7326873,0.00024712,2]
[372406494,1752631848790,-576.8651031,0.00024712,2]
[372406495,1752631848800,-576.8651031,0.00024712,2]
[372406496,1752631848810,-159.7314836,0.00024712,2]
[372406497,1752631848819,-178.021619,0.00024712,2]
[372406498,1752631848828,-178.021619,0.00024712,2]
[372406499,1752631848838,-576.8651031,0.00024712,2]
[372406500,1752631848847,-159.7314836,0.00024712,2]
[372406501,1752631848857,-153.0,0.00024712,2]
[372406502,1752631848943,-576.8651031,0.00024712,2]
[372406503,1752631848964,-159.7314836,0.00024712,2]
[372406504,1752631848974,-178.021619,0.00024712,2]
[372406505,1752631848984,-153.0,0.00024712,2]
[372406506,1752631848994,-575.4421734,0.00024712,2]
[372406507,1752631849004,-153.0,0.00024712,2]
[372406508,1752631849015,-153.0,0.00024712,2]
[372406509,1752631849027,-536.6,0.00024717,2]
[372406510,1752631849036,-460.0,0.00024717,2]
[372406511,1752631849047,-578.74,0.00024717,2]
[372406512,1752631849056,-552.51,0.00024719,2]
[372406513,1752631849066,-800.0,0.00024731,2]
[372406514,1752631849076,-1442.46,0.000248,7]
[372406515,1752631849085,-1841.30612354,0.000248,2]
[372406516,1752631849095,-203.27072837,0.000248,2]
[372406517,1752631849105,-1492.2526823,0.000248,2]
[372406518,1752631849115,-151.0,0.00024817,7]
[372406519,1752631849126,-300.0,0.00024819,2]
[372406520,1752631849135,-800.0,0.00024829,2]
[372406521,1752631849146,-805.55787653,0.0002486,2]
[372406522,1752631849155,-879.0,0.0002486,2]
[372406523,1752631849165,-1492.2526823,0.00024873,2]
[372406524,1752631849176,-500.0,0.00024877,2]
[372406525,1752631849185,-500.0,0.00024877,2]
[372406526,1752631849195,-202.27703485,0.00024877,2]
[372406527,1752631849205,-500.0,0.00024877,2]
[372406528,1752631849214,-151.0,0.00024877,7]
[372406529,1752631849224,-151.0,0.00024877,7]
[372406530,1752631849234,-152.355231,0.00024877,7]
[372406531,1752631849244,-151.0,0.00024877,7]
[372406532,1752631849255,-258.77679,0.00024877,7]
[372406533,1752631849265,-299.65057117,0.00024877,2]
[372406534,1752631849275,-500.0,0.00024877,2]
[372406535,1752631849284,-151.0,0.00024877,2]
[372406536,1752631849294,-151.0,0.00024877,2]
[372406537,1752631849304,-500.0,0.00024877,2]
[372406538,1752631849313,-151.0,0.00024877,2]
[372406539,1752631849323,-151.81231773,0.00024877,2]
[372406540,1752631849333,-152.006555,0.00024877,3]
[372406541,1752631849342,-157.489182,0.00024877,7]
[372406542,1752631849351,-151.0,0.00024877,2]
[372406543,1752631849361,-151.0,0.00024877,7]
[372406544,1752631849370,-151.0,0.00024877,7]
[372406545,1752631849379,-203.521275,0.00024877,7]
[372406546,1752631849389,-203.521275,0.00024877,7]
[372406547,1752631849398,-151.0,0.00024877,7]
[372406548,1752631849408,-500.0,0.00024877,2]
[372406549,1752631849417,-500.0,0.00024877,2]
[372406550,1752631849427,-151.0,0.00024877,2]
[372406551,1752631849438,-244.53927252,0.00024877,2]
[372406552,1752631849447,-390.078489,0.00024877,7]
[372406553,1752631849457,-390.078489,0.00024877,7]
[372406554,1752631849467,-201.94288971,0.00024877,2]
[372406555,1752631849477,-500.0,0.00024877,2]
[372406556,1752631849487,-500.0,0.00024877,2]
[372406557,1752631849496,-500.0,0.00024877,2]
[372406558,1752631849506,-151.0,0.00024877,2]
[372406559,1752631849515,-438.0,0.00024877,2]
[372406560,1752631849525,-500.0,0.00024877,2]
[372406561,1752631849534,-151.0,0.00024877,2]
[372406562,1752631849544,-151.0,0.00024877,2]
[372406563,1752631849554,-500.0,0.00024877,2]
[372406564,1752631849563,-152.38279011,0.00024877,2]
[372406565,1752631849572,-151.0,0.00024877,2]
[372406566,1752631849581,-151.0,0.00024877,2]
[372406567,1752631849590,-500.0,0.00024877,2]
[372406568,1752631849599,-3241.59,0.00024892,2]
[372406569,1752631849609,-496.96,0.00024892,2]
[372406570,1752631849619,-659.84,0.00024892,2]
[372406571,1752631849628,-207.0,0.00024892,2]
[372406572,1752631849638,-114863.61826649,0.00024893,2]
[372406573,1752631849649,-151.0,0.00024893,7]
[372406574,1752631849659,-151.0,0.00024893,7]
[372406575,1752631849669,-151.988973,0.00024893,7]
[372406576,1752631849681,-942.12,0.00024893,2]
[372406577,1752631849691,-151.0,0.00024893,7]
[372406578,1752631849700,-151.0,0.00024893,7]
[372406579,1752631849711,-574.51,0.00024893,2]
[372406580,1752631849723,-184.160775,0.00024893,7]
[372406581,1752631849732,-184.160775,0.00024893,7]
[372406582,1752631849742,-168.0,0.00024895,2]
[372406583,1752631849752,-879.0,0.00024896,2]
[372406584,1752631849762,-135657.53494039,0.00024896,2]
[372406585,1752631849853,-460.0,0.00020508,2]
[372406586,1752631849864,-460.0,0.00020782,2]
[372406587,1752631849874,-149.03893575,0.00021056,2]
[372406588,1752631849886,-310.96106425,0.00021056,2]
[372406589,1752631849897,-460.0,0.0002133,2]
[372406590,1752631849906,-222.65983711,0.00021604,2]
[372406591,1752631849918,-237.34016289,0.00021604,2]
[372406592,1752631849928,-460.0,0.00021878,2]